[Event "Late-Titled-Tuesday-Blitz-May-14-2024"]
[Site "Chess.com"]
[Date "2024.05.14"]
[Round "7"]
[White "ACollins05"]
[Black "zacachess"]
[Result "1-0"]
[WhiteElo "2526"]
[BlackElo "2355"]
[TimeControl "180+1"]
[EndTime "15:16:15 PDT"]
[Termination "ACollins05 won by resignation"]

1. e4 {[%clk 0:03:00.9]} 1... c5 {[%clk 0:02:59.4]} 2. Nf3 {[%clk 0:03:00.3]}
2... d6 {[%clk 0:02:59.5]} 3. d4 {[%clk 0:03:00.6]} 3... cxd4 {[%clk 0:03:00.4]}
4. Nxd4 {[%clk 0:03:01.5]} 4... Nf6 {[%clk 0:03:00.7]} 5. Nc3 {[%clk 0:03:02.1]}
5... Nc6 {[%clk 0:03:01.2]} 6. Bg5 {[%clk 0:03:02.5]} 6... e6 {[%clk 0:03:01.3]}
7. Qd2 {[%clk 0:03:02.5]} 7... a6 {[%clk 0:03:01.2]} 8. O-O-O {[%clk 0:03:02]}
8... Bd7 {[%clk 0:03:01.6]} 9. Kb1 {[%clk 0:03:02]} 9... Be7 {[%clk 0:02:55.7]}
10. Nxc6 {[%clk 0:02:55.6]} 10... Bxc6 {[%clk 0:02:55.2]} 11. f3 {[%clk
0:02:56.5]} 11... O-O {[%clk 0:02:44.7]} 12. Ne2 {[%clk 0:02:56.4]} 12... d5
{[%clk 0:02:28]} 13. e5 {[%clk 0:02:36.4]} 13... Nd7 {[%clk 0:02:27.1]} 14. Bxe7
{[%clk 0:02:35.3]} 14... Qxe7 {[%clk 0:02:27.9]} 15. f4 {[%clk 0:02:36.2]} 15...
Nc5 {[%clk 0:02:00.2]} 16. Nd4 {[%clk 0:02:35.4]} 16... Ne4 {[%clk 0:01:50.7]}
17. Qe3 {[%clk 0:02:35.1]} 17... f5 {[%clk 0:01:47.3]} 18. exf6 {[%clk
0:02:31.4]} 18... Qxf6 {[%clk 0:01:47.1]} 19. g3 {[%clk 0:02:26.2]} 19... e5
{[%clk 0:01:46.7]} 20. fxe5 {[%clk 0:02:24.5]} 20... Qxe5 {[%clk 0:01:47.6]} 21.
Bg2 {[%clk 0:02:16.9]} 21... Rae8 {[%clk 0:01:44]} 22. Rhe1 {[%clk 0:02:12]}
22... Qf6 {[%clk 0:01:23.4]} 23. Rf1 {[%clk 0:02:02.6]} 23... Qe5 {[%clk
0:01:18.9]} 24. Rxf8+ {[%clk 0:02:01.6]} 24... Rxf8 {[%clk 0:01:19.8]} 25. Re1
{[%clk 0:01:57.1]} 25... Re8 {[%clk 0:01:14.3]} 26. Nxc6 {[%clk 0:01:51.6]}
26... Nd2+ {[%clk 0:00:55.6]} 27. Kc1 {[%clk 0:01:49.4]} 27... Qxe3 {[%clk
0:00:55.6]} 28. Rxe3 {[%clk 0:01:49.4]} 28... Rxe3 {[%clk 0:00:56.5]} 29. Kxd2
{[%clk 0:01:45.5]} 29... Re8 {[%clk 0:00:42.5]} 30. Bxd5+ {[%clk 0:01:32.9]}
30... Kf8 {[%clk 0:00:42.4]} 31. Nd4 {[%clk 0:01:28.4]} 31... Ke7 {[%clk
0:00:42.1]} 32. Bxb7 {[%clk 0:01:25.9]} 32... a5 {[%clk 0:00:40.5]} 33. Be4
{[%clk 0:01:24]} 33... g6 {[%clk 0:00:38.8]} 34. Kd3 {[%clk 0:01:22.3]} 34...
Kf6 {[%clk 0:00:37.9]} 35. c4 {[%clk 0:01:22]} 35... a4 {[%clk 0:00:36.1]} 36.
b3 {[%clk 0:01:20.6]} 36... a3 {[%clk 0:00:35.3]} 37. c5 {[%clk 0:01:16.8]}
37... Ke5 {[%clk 0:00:33.9]} 38. Nf3+ {[%clk 0:01:12.7]} 38... Kf6 {[%clk
0:00:31.8]} 39. c6 {[%clk 0:01:10.1]} 39... Ke7 {[%clk 0:00:28.9]} 40. Nd4
{[%clk 0:01:08.7]} 40... Rf8 {[%clk 0:00:18.7]} 41. Nb5 {[%clk 0:01:02.8]} 41...
Rf2 {[%clk 0:00:11.2]} 42. c7 {[%clk 0:01:02.2]} 42... Kd7 {[%clk 0:00:10.9]}
43. Bb7 {[%clk 0:01:02.3]} 1-0

[Event "Late-Titled-Tuesday-Blitz-May-14-2024"]
[Site "Chess.com"]
[Date "2024.05.14"]
[Round "7"]
[White "nitpicker"]
[Black "gabduschew"]
[Result "1-0"]
[WhiteElo "2307"]
[BlackElo "2372"]
[TimeControl "180+1"]
[EndTime "15:16:19 PDT"]
[Termination "nitpicker won by resignation"]

1. d4 {[%clk 0:03:00.9]} 1... Nf6 {[%clk 0:02:59.9]} 2. c4 {[%clk 0:03:01]} 2...
e5 {[%clk 0:02:58.1]} 3. dxe5 {[%clk 0:02:59.7]} 3... Ng4 {[%clk 0:02:58.2]} 4.
Bf4 {[%clk 0:02:59.4]} 4... Nc6 {[%clk 0:02:55.6]} 5. Nf3 {[%clk 0:02:58.1]}
5... f6 {[%clk 0:02:53.5]} 6. e3 {[%clk 0:02:50.1]} 6... fxe5 {[%clk 0:02:50.7]}
7. Bg3 {[%clk 0:02:47.8]} 7... Bb4+ {[%clk 0:02:50.4]} 8. Nbd2 {[%clk
0:02:43.7]} 8... O-O {[%clk 0:02:49.3]} 9. h3 {[%clk 0:02:39.2]} 9... Nh6 {[%clk
0:02:34.7]} 10. Nxe5 {[%clk 0:02:28.8]} 10... Nxe5 {[%clk 0:02:29.4]} 11. Bxe5
{[%clk 0:02:26.3]} 11... d6 {[%clk 0:02:28.9]} 12. Bc3 {[%clk 0:02:00.9]} 12...
Bxc3 {[%clk 0:02:20.7]} 13. bxc3 {[%clk 0:02:01.8]} 13... Qf6 {[%clk 0:02:12.5]}
14. Ne4 {[%clk 0:02:01.4]} 14... Qe5 {[%clk 0:02:12]} 15. Qd5+ {[%clk
0:01:58.5]} 15... Qe6 {[%clk 0:01:58.9]} 16. Ng5 {[%clk 0:01:45.5]} 16... Qxd5
{[%clk 0:01:41.9]} 17. cxd5 {[%clk 0:01:46.4]} 17... Nf7 {[%clk 0:01:32.8]} 18.
Nxf7 {[%clk 0:01:40.4]} 18... Rxf7 {[%clk 0:01:33.7]} 19. Rb1 {[%clk 0:01:34.5]}
19... Rb8 {[%clk 0:01:25.6]} 20. Bd3 {[%clk 0:01:23.6]} 20... Bf5 {[%clk
0:01:23.2]} 21. Bxf5 {[%clk 0:01:18.9]} 21... Rxf5 {[%clk 0:01:24.1]} 22. c4
{[%clk 0:01:16.4]} 22... b5 {[%clk 0:01:20.6]} 23. O-O {[%clk 0:01:06.2]} 23...
b4 {[%clk 0:01:13.5]} 24. Rb3 {[%clk 0:01:00.3]} 24... Re5 {[%clk 0:00:55.5]}
25. Rfb1 {[%clk 0:00:57.4]} 25... a5 {[%clk 0:00:52.5]} 26. a3 {[%clk
0:00:56.8]} 26... Re4 {[%clk 0:00:46.2]} 27. axb4 {[%clk 0:00:52.8]} 27... Rxc4
{[%clk 0:00:46.1]} 28. bxa5 {[%clk 0:00:52.5]} 28... Rxb3 {[%clk 0:00:45.7]} 29.
Rxb3 {[%clk 0:00:52.3]} 29... Ra4 {[%clk 0:00:46.6]} 30. Rb8+ {[%clk 0:00:41.3]}
30... Kf7 {[%clk 0:00:46.3]} 31. Rb7 {[%clk 0:00:40.2]} 31... Rxa5 {[%clk
0:00:45.6]} 32. Rxc7+ {[%clk 0:00:40.3]} 32... Kf6 {[%clk 0:00:45.1]} 33. e4
{[%clk 0:00:38.5]} 33... h6 {[%clk 0:00:29.4]} 34. Rd7 {[%clk 0:00:33.6]} 34...
Ra6 {[%clk 0:00:29.4]} 35. f4 {[%clk 0:00:32.1]} 35... Ra4 {[%clk 0:00:26.4]}
36. Rxd6+ {[%clk 0:00:30.8]} 36... Kf7 {[%clk 0:00:20.7]} 37. Re6 {[%clk
0:00:30.7]} 37... Ra2 {[%clk 0:00:19.6]} 38. f5 {[%clk 0:00:28.1]} 38... Rd2
{[%clk 0:00:16]} 39. d6 {[%clk 0:00:25.5]} 39... Kf8 {[%clk 0:00:15.8]} 40. e5
{[%clk 0:00:23.6]} 1-0

[Event "Late-Titled-Tuesday-Blitz-May-14-2024"]
[Site "Chess.com"]
[Date "2024.05.14"]
[Round "7"]
[White "SharathRk6"]
[Black "IlyaGrigorjev"]
[Result "0-1"]
[WhiteElo "2520"]
[BlackElo "2869"]
[TimeControl "180+1"]
[EndTime "15:16:21 PDT"]
[Termination "IlyaGrigorjev won on time"]

1. e4 {[%clk 0:03:00.9]} 1... e5 {[%clk 0:02:59.9]} 2. Nf3 {[%clk 0:03:00.6]}
2... Nc6 {[%clk 0:03:00.6]} 3. Bb5 {[%clk 0:02:58.2]} 3... a6 {[%clk 0:03:00.7]}
4. Ba4 {[%clk 0:02:56.5]} 4... Nge7 {[%clk 0:03:01.2]} 5. O-O {[%clk 0:02:55.6]}
5... Ng6 {[%clk 0:03:01.4]} 6. d4 {[%clk 0:02:53.6]} 6... exd4 {[%clk
0:03:02.3]} 7. Nxd4 {[%clk 0:02:53.1]} 7... Nxd4 {[%clk 0:03:03.2]} 8. Qxd4
{[%clk 0:02:52.6]} 8... b5 {[%clk 0:03:03.8]} 9. Bb3 {[%clk 0:02:50.8]} 9... Bb7
{[%clk 0:03:04.5]} 10. a4 {[%clk 0:02:43.9]} 10... c5 {[%clk 0:03:01.1]} 11. Qe3
{[%clk 0:02:41.7]} 11... c4 {[%clk 0:03:00.8]} 12. Ba2 {[%clk 0:02:40.9]} 12...
Qc7 {[%clk 0:02:51.6]} 13. axb5 {[%clk 0:02:37.4]} 13... axb5 {[%clk 0:02:52.5]}
14. Nc3 {[%clk 0:02:37.2]} 14... Bc5 {[%clk 0:02:44.7]} 15. Qe2 {[%clk
0:01:55.3]} 15... Bc6 {[%clk 0:02:15.4]} 16. Be3 {[%clk 0:01:39.1]} 16... Bxe3
{[%clk 0:02:06.5]} 17. Qxe3 {[%clk 0:01:38.9]} 17... O-O {[%clk 0:02:07.2]} 18.
b3 {[%clk 0:01:32.4]} 18... b4 {[%clk 0:01:59.6]} 19. Ne2 {[%clk 0:01:27.2]}
19... c3 {[%clk 0:01:56.7]} 20. Qd4 {[%clk 0:01:21.5]} 20... Rfb8 {[%clk
0:01:44.4]} 21. Ng3 {[%clk 0:01:10]} 21... Qe5 {[%clk 0:01:34.1]} 22. Qe3 {[%clk
0:00:46]} 22... Nf4 {[%clk 0:01:16.2]} 23. f3 {[%clk 0:00:36.5]} 23... Ra5
{[%clk 0:01:09.7]} 24. Nf5 {[%clk 0:00:17.8]} 24... g6 {[%clk 0:01:00.8]} 25.
Nh6+ {[%clk 0:00:15.3]} 25... Kf8 {[%clk 0:00:47.5]} 26. Ng4 {[%clk 0:00:14.4]}
26... Qd4 {[%clk 0:00:44.2]} 27. Kf2 {[%clk 0:00:04.8]} 27... Qxe3+ {[%clk
0:00:42.8]} 28. Kxe3 {[%clk 0:00:05.4]} 28... Nxg2+ {[%clk 0:00:41.6]} 29. Kd4
{[%clk 0:00:03.8]} 29... Rba8 {[%clk 0:00:41.5]} 30. Rf2 {[%clk 0:00:02.2]}
30... Nf4 {[%clk 0:00:40.9]} 31. Kc4 {[%clk 0:00:02.2]} 31... Rxa2 {[%clk
0:00:40.1]} 32. Rd1 {[%clk 0:00:03.1]} 32... Rb8 {[%clk 0:00:34.3]} 33. Ne5
{[%clk 0:00:03.3]} 33... Bb5+ {[%clk 0:00:32.3]} 34. Kxb4 {[%clk 0:00:02.1]}
34... f6 {[%clk 0:00:25.1]} 0-1

[Event "Late-Titled-Tuesday-Blitz-May-14-2024"]
[Site "Chess.com"]
[Date "2024.05.14"]
[Round "7"]
[White "nabukatnezarr"]
[Black "Ramil_Faizrakhmanov"]
[Result "0-1"]
[WhiteElo "2618"]
[BlackElo "2856"]
[TimeControl "180+1"]
[EndTime "15:16:29 PDT"]
[Termination "Ramil_Faizrakhmanov won on time"]

1. b3 {[%clk 0:03:00.9]} 1... Nf6 {[%clk 0:02:57.7]} 2. Bb2 {[%clk 0:03:01.8]}
2... g6 {[%clk 0:02:57.8]} 3. Bxf6 {[%clk 0:03:01.6]} 3... exf6 {[%clk
0:02:57.9]} 4. c4 {[%clk 0:03:02.4]} 4... d5 {[%clk 0:02:56.3]} 5. cxd5 {[%clk
0:03:02.1]} 5... Qxd5 {[%clk 0:02:57.2]} 6. Nc3 {[%clk 0:03:02.5]} 6... Qa5
{[%clk 0:02:55.2]} 7. g3 {[%clk 0:02:40.4]} 7... f5 {[%clk 0:02:54.5]} 8. Bg2
{[%clk 0:02:39.7]} 8... Bg7 {[%clk 0:02:54.5]} 9. Qc2 {[%clk 0:02:36.7]} 9...
O-O {[%clk 0:02:54]} 10. Nf3 {[%clk 0:02:36.7]} 10... c5 {[%clk 0:02:45.2]} 11.
O-O {[%clk 0:02:34.9]} 11... Nc6 {[%clk 0:02:45.6]} 12. a3 {[%clk 0:02:08]}
12... Nd4 {[%clk 0:02:42]} 13. Nxd4 {[%clk 0:01:21.5]} 13... cxd4 {[%clk
0:02:42.9]} 14. Nd5 {[%clk 0:01:19.6]} 14... Be6 {[%clk 0:02:30.3]} 15. b4
{[%clk 0:01:07.6]} 15... Qd8 {[%clk 0:02:27.6]} 16. Qc5 {[%clk 0:00:25.3]} 16...
d3 {[%clk 0:02:13.5]} 17. Rae1 {[%clk 0:00:18.3]} 17... b6 {[%clk 0:02:05.3]}
18. Qc6 {[%clk 0:00:09.8]} 18... Rc8 {[%clk 0:02:02]} 19. Qb5 {[%clk 0:00:09.7]}
19... dxe2 {[%clk 0:01:58.4]} 20. Rxe2 {[%clk 0:00:10.6]} 20... a6 {[%clk
0:01:53]} 21. Qd3 {[%clk 0:00:10.7]} 21... b5 {[%clk 0:01:49.4]} 22. Rfe1 {[%clk
0:00:10.4]} 22... Kh8 {[%clk 0:01:47.2]} 23. h4 {[%clk 0:00:10]} 23... h5 {[%clk
0:01:46.6]} 24. Rxe6 {[%clk 0:00:10.1]} 24... fxe6 {[%clk 0:01:45]} 25. Rxe6
{[%clk 0:00:11]} 25... Rf6 {[%clk 0:01:33.9]} 26. Qe3 {[%clk 0:00:07.8]} 26...
Rxe6 {[%clk 0:01:27.7]} 27. Qxe6 {[%clk 0:00:08.7]} 27... Qe8 {[%clk 0:01:24.5]}
28. Qxa6 {[%clk 0:00:06.8]} 28... Kh7 {[%clk 0:01:07.1]} 29. Nf4 {[%clk
0:00:05.1]} 29... Rc2 {[%clk 0:01:00.9]} 30. Bd5 {[%clk 0:00:05]} 30... Rxd2
{[%clk 0:00:58.1]} 31. Qc6 {[%clk 0:00:04.1]} 31... Qe1+ {[%clk 0:00:56.2]} 32.
Kh2 {[%clk 0:00:04.1]} 32... Rxf2+ {[%clk 0:00:29.4]} 33. Bg2 {[%clk 0:00:04.8]}
33... Rxf4 {[%clk 0:00:29.9]} 34. gxf4 {[%clk 0:00:04.8]} 34... Qxh4+ {[%clk
0:00:30.8]} 35. Kg1 {[%clk 0:00:04.5]} 35... Bd4+ {[%clk 0:00:30.6]} 0-1

[Event "Late-Titled-Tuesday-Blitz-May-14-2024"]
[Site "Chess.com"]
[Date "2024.05.14"]
[Round "7"]
[White "Ali_rastbod"]
[Black "Savagelittlemole"]
[Result "1-0"]
[WhiteElo "2721"]
[BlackElo "2518"]
[TimeControl "180+1"]
[EndTime "15:16:36 PDT"]
[Termination "Ali_rastbod won by checkmate"]

1. e4 {[%clk 0:03:00.9]} 1... c5 {[%clk 0:02:59.7]} 2. Nf3 {[%clk 0:02:59.3]}
2... d6 {[%clk 0:02:59.2]} 3. c3 {[%clk 0:02:58.3]} 3... Nf6 {[%clk 0:02:58.4]}
4. h3 {[%clk 0:02:58.9]} 4... g6 {[%clk 0:02:57.9]} 5. Bd3 {[%clk 0:02:57.8]}
5... Bg7 {[%clk 0:02:58.1]} 6. O-O {[%clk 0:02:58.6]} 6... O-O {[%clk
0:02:58.4]} 7. Bc2 {[%clk 0:02:59.3]} 7... Nc6 {[%clk 0:02:57.8]} 8. d4 {[%clk
0:02:59.7]} 8... cxd4 {[%clk 0:02:58.4]} 9. cxd4 {[%clk 0:03:00.6]} 9... e5
{[%clk 0:02:58.4]} 10. d5 {[%clk 0:03:00.2]} 10... Nb4 {[%clk 0:02:58.6]} 11.
Bb3 {[%clk 0:02:59.2]} 11... Nxe4 {[%clk 0:02:56.5]} 12. Qe1 {[%clk 0:02:59.8]}
12... Nd3 {[%clk 0:02:35.6]} 13. Qxe4 {[%clk 0:02:58.3]} 13... Bf5 {[%clk
0:02:36.1]} 14. Qe3 {[%clk 0:02:49.4]} 14... e4 {[%clk 0:02:31.2]} 15. Nd4
{[%clk 0:02:35.1]} 15... Nxc1 {[%clk 0:02:29.4]} 16. Rxc1 {[%clk 0:02:19.6]}
16... Qh4 {[%clk 0:02:28]} 17. Rd1 {[%clk 0:02:08.1]} 17... Kh8 {[%clk
0:02:21.7]} 18. Nc3 {[%clk 0:01:39.5]} 18... Bh6 {[%clk 0:02:17]} 19. Qg3 {[%clk
0:01:33.9]} 19... Qh5 {[%clk 0:02:07.5]} 20. Qxd6 {[%clk 0:01:21.2]} 20... e3
{[%clk 0:02:04.3]} 21. Qg3 {[%clk 0:01:07.7]} 21... exf2+ {[%clk 0:02:01.3]} 22.
Qxf2 {[%clk 0:01:08.6]} 22... Rae8 {[%clk 0:01:53.6]} 23. Re1 {[%clk 0:01:02.6]}
23... Bg7 {[%clk 0:01:40.6]} 24. Nxf5 {[%clk 0:00:56.8]} 24... gxf5 {[%clk
0:01:41.5]} 25. Rxe8 {[%clk 0:00:55.3]} 25... Rxe8 {[%clk 0:01:39.7]} 26. Re1
{[%clk 0:00:56]} 26... Rxe1+ {[%clk 0:01:34.8]} 27. Qxe1 {[%clk 0:00:56.9]}
27... Bd4+ {[%clk 0:01:35]} 28. Kh1 {[%clk 0:00:57.4]} 28... f4 {[%clk
0:01:21.3]} 29. Qd1 {[%clk 0:00:51.2]} 29... Qe5 {[%clk 0:01:14.5]} 30. Qf1
{[%clk 0:00:47.2]} 30... f3 {[%clk 0:00:53.8]} 31. gxf3 {[%clk 0:00:46]} 31...
Bb6 {[%clk 0:00:43.1]} 32. Ne4 {[%clk 0:00:45.7]} 32... f5 {[%clk 0:00:38.2]}
33. Ng5 {[%clk 0:00:45.8]} 33... Qg3 {[%clk 0:00:31]} 34. Nf7+ {[%clk 0:00:45]}
34... Kg7 {[%clk 0:00:30.3]} 35. d6 {[%clk 0:00:45.9]} 35... Kf6 {[%clk
0:00:16.6]} 36. Bd5 {[%clk 0:00:42.8]} 36... h5 {[%clk 0:00:07.9]} 37. d7 {[%clk
0:00:38.1]} 37... Ke7 {[%clk 0:00:07.8]} 38. Qe2+ {[%clk 0:00:30.9]} 38... Kxd7
{[%clk 0:00:05.1]} 39. Qe6+ {[%clk 0:00:31.3]} 39... Kc7 {[%clk 0:00:03.5]} 40.
Qe7+ {[%clk 0:00:31.9]} 40... Kc8 {[%clk 0:00:02]} 41. Nd6+ {[%clk 0:00:31.3]}
41... Kb8 {[%clk 0:00:01.3]} 42. Qxb7# {[%clk 0:00:31.1]} 1-0

[Event "Late-Titled-Tuesday-Blitz-May-14-2024"]
[Site "Chess.com"]
[Date "2024.05.14"]
[Round "7"]
[White "ChEsper99"]
[Black "rdarruda"]
[Result "0-1"]
[WhiteElo "2239"]
[BlackElo "2492"]
[TimeControl "180+1"]
[EndTime "15:16:38 PDT"]
[Termination "rdarruda won by resignation"]

1. Nf3 {[%clk 0:03:00.9]} 1... d5 {[%clk 0:02:59.8]} 2. e3 {[%clk 0:03:00.6]}
2... Nf6 {[%clk 0:02:58.5]} 3. c4 {[%clk 0:02:58.7]} 3... c6 {[%clk 0:02:57.2]}
4. b3 {[%clk 0:02:53.1]} 4... g6 {[%clk 0:02:57]} 5. Bb2 {[%clk 0:02:53.1]} 5...
Bg7 {[%clk 0:02:57.6]} 6. Be2 {[%clk 0:02:47]} 6... O-O {[%clk 0:02:57.3]} 7.
O-O {[%clk 0:02:46.9]} 7... e6 {[%clk 0:02:56.9]} 8. Qc2 {[%clk 0:02:43.2]} 8...
b6 {[%clk 0:02:56.3]} 9. d4 {[%clk 0:02:37]} 9... Bb7 {[%clk 0:02:44.7]} 10. Nc3
{[%clk 0:02:36.8]} 10... Nbd7 {[%clk 0:02:43.8]} 11. Rad1 {[%clk 0:02:32.7]}
11... Qe7 {[%clk 0:02:43.5]} 12. Rfe1 {[%clk 0:02:31.7]} 12... Rac8 {[%clk
0:02:43.2]} 13. Bd3 {[%clk 0:02:21.6]} 13... c5 {[%clk 0:02:41.4]} 14. Qb1
{[%clk 0:02:16.6]} 14... Rfd8 {[%clk 0:02:36.1]} 15. cxd5 {[%clk 0:02:14.3]}
15... exd5 {[%clk 0:02:32.7]} 16. Rc1 {[%clk 0:01:54.6]} 16... Ne4 {[%clk
0:02:27.2]} 17. dxc5 {[%clk 0:01:46.2]} 17... Ndxc5 {[%clk 0:02:21.1]} 18. Red1
{[%clk 0:01:28.6]} 18... Nxd3 {[%clk 0:02:14.7]} 19. Rxd3 {[%clk 0:01:22.4]}
19... d4 {[%clk 0:01:56.8]} 20. exd4 {[%clk 0:01:06.7]} 20... Nxc3 {[%clk
0:01:52.6]} 21. Bxc3 {[%clk 0:01:00.6]} 21... Be4 {[%clk 0:01:50.3]} 22. Re3
{[%clk 0:00:52.2]} 22... Bxb1 {[%clk 0:01:50]} 23. Rxe7 {[%clk 0:00:52.1]} 23...
Bxa2 {[%clk 0:01:49.9]} 24. Bb2 {[%clk 0:00:41.2]} 24... Rxc1+ {[%clk 0:01:47]}
25. Bxc1 {[%clk 0:00:37.7]} 25... a5 {[%clk 0:01:45.7]} 26. Rb7 {[%clk 0:00:10]}
26... Bxb3 {[%clk 0:01:42.6]} 27. Rxb6 {[%clk 0:00:10.1]} 27... a4 {[%clk
0:01:41.8]} 28. Bb2 {[%clk 0:00:10.3]} 28... h6 {[%clk 0:01:38.7]} 29. h4 {[%clk
0:00:09]} 29... Rc8 {[%clk 0:01:38.5]} 30. Ba3 {[%clk 0:00:02.4]} 30... Rc2
{[%clk 0:01:34.5]} 31. Bb4 {[%clk 0:00:01.2]} 31... Bd5 {[%clk 0:01:27]} 32.
Rb8+ {[%clk 0:00:01.6]} 32... Kh7 {[%clk 0:01:26.2]} 33. Rb5 {[%clk 0:00:01.8]}
33... Bxf3 {[%clk 0:01:24.1]} 34. gxf3 {[%clk 0:00:02.7]} 34... Bxd4 {[%clk
0:01:24.1]} 35. Ra5 {[%clk 0:00:03.5]} 35... Rxf2 {[%clk 0:01:16]} 36. Kh1
{[%clk 0:00:03.5]} 36... Rxf3 {[%clk 0:01:15.2]} 37. Rxa4 {[%clk 0:00:02.9]}
37... Rh3+ {[%clk 0:01:13.4]} 38. Kg2 {[%clk 0:00:02.8]} 38... Rxh4 {[%clk
0:01:10]} 39. Bc3 {[%clk 0:00:03]} 39... Bf6 {[%clk 0:00:54.9]} 40. Rxh4 {[%clk
0:00:03.9]} 40... Bxh4 {[%clk 0:00:54.5]} 41. Kh3 {[%clk 0:00:02.8]} 41... Bg5
{[%clk 0:00:53.8]} 42. Kg4 {[%clk 0:00:02.9]} 42... f5+ {[%clk 0:00:52.5]} 43.
Kf3 {[%clk 0:00:02.7]} 43... h5 {[%clk 0:00:52.8]} 44. Be1 {[%clk 0:00:02]}
44... Be7 {[%clk 0:00:51.3]} 45. Bc3 {[%clk 0:00:02.2]} 45... g5 {[%clk
0:00:51]} 46. Bd2 {[%clk 0:00:02.9]} 46... Kg6 {[%clk 0:00:50.2]} 47. Bc3 {[%clk
0:00:03.2]} 47... g4+ {[%clk 0:00:49.6]} 48. Kf4 {[%clk 0:00:03.3]} 48... Bd6+
{[%clk 0:00:49.6]} 49. Ke3 {[%clk 0:00:03.7]} 49... h4 {[%clk 0:00:49.8]} 0-1

[Event "Late-Titled-Tuesday-Blitz-May-14-2024"]
[Site "Chess.com"]
[Date "2024.05.14"]
[Round "7"]
[White "Incognito_Knight"]
[Black "mostafa_sakha"]
[Result "1-0"]
[WhiteElo "2729"]
[BlackElo "2390"]
[TimeControl "180+1"]
[EndTime "15:16:39 PDT"]
[Termination "Incognito_Knight won on time"]

1. b3 {[%clk 0:03:00.9]} 1... e5 {[%clk 0:02:59.4]} 2. Bb2 {[%clk 0:03:00.7]}
2... Nc6 {[%clk 0:02:59.6]} 3. c4 {[%clk 0:03:00.8]} 3... Nf6 {[%clk 0:02:59.1]}
4. Nf3 {[%clk 0:03:01.1]} 4... e4 {[%clk 0:02:54.9]} 5. Nd4 {[%clk 0:03:01.5]}
5... Bc5 {[%clk 0:02:54]} 6. Nf5 {[%clk 0:03:01.6]} 6... O-O {[%clk 0:02:47.8]}
7. Ng3 {[%clk 0:02:49.1]} 7... d5 {[%clk 0:02:20.9]} 8. cxd5 {[%clk 0:02:37.8]}
8... Qxd5 {[%clk 0:02:20]} 9. Bxf6 {[%clk 0:02:33.1]} 9... gxf6 {[%clk
0:02:19.6]} 10. Nc3 {[%clk 0:02:33]} 10... Qe5 {[%clk 0:02:14.6]} 11. Ngxe4
{[%clk 0:02:19.2]} 11... Bf5 {[%clk 0:01:56.9]} 12. Nxc5 {[%clk 0:02:09.1]}
12... Qxc5 {[%clk 0:01:57.8]} 13. e3 {[%clk 0:02:01.8]} 13... Nb4 {[%clk
0:01:51.1]} 14. Rc1 {[%clk 0:01:56.7]} 14... Bd3 {[%clk 0:01:40.9]} 15. a3
{[%clk 0:01:30.9]} 15... Nc2+ {[%clk 0:01:18.6]} 16. Rxc2 {[%clk 0:01:30.5]}
16... Bxc2 {[%clk 0:01:19.5]} 17. Qxc2 {[%clk 0:01:30.9]} 17... Qxa3 {[%clk
0:01:19.7]} 18. Bd3 {[%clk 0:01:14.8]} 18... Qa1+ {[%clk 0:01:18.6]} 19. Nd1
{[%clk 0:01:10.7]} 19... Kg7 {[%clk 0:01:15.9]} 20. Qxc7 {[%clk 0:01:08.4]}
20... Qe5 {[%clk 0:00:59.1]} 21. Qxe5 {[%clk 0:01:01.7]} 21... fxe5 {[%clk
0:00:58.7]} 22. Nc3 {[%clk 0:01:02.4]} 22... a6 {[%clk 0:00:53.2]} 23. g4 {[%clk
0:00:58]} 23... b5 {[%clk 0:00:51.3]} 24. Ke2 {[%clk 0:00:57.4]} 24... Rac8
{[%clk 0:00:47.9]} 25. h4 {[%clk 0:00:52.8]} 25... Rfd8 {[%clk 0:00:41.6]} 26.
h5 {[%clk 0:00:37.1]} 26... h6 {[%clk 0:00:37.5]} 27. Ra1 {[%clk 0:00:32.3]}
27... Rc6 {[%clk 0:00:33.7]} 28. Ne4 {[%clk 0:00:32]} 28... Rb6 {[%clk
0:00:14.6]} 29. b4 {[%clk 0:00:30.4]} 29... Rc6 {[%clk 0:00:13.6]} 30. Nc5
{[%clk 0:00:30.3]} 30... Rdd6 {[%clk 0:00:13]} 31. Be4 {[%clk 0:00:27.6]} 31...
Rb6 {[%clk 0:00:10.2]} 32. Bb7 {[%clk 0:00:27.1]} 32... Rd8 {[%clk 0:00:03.4]}
33. Rxa6 {[%clk 0:00:23.6]} 33... Rxa6 {[%clk 0:00:03.1]} 34. Bxa6 {[%clk
0:00:24.5]} 34... Rb8 {[%clk 0:00:01.8]} 35. Nd7 {[%clk 0:00:16]} 1-0